bitfinex/quotes_ETHUSD_20260131
["timestamp","ask_amount","ask_price","bid_price","bid_amount"]
[1769849826156,0.1024,2649.1,2647.5,13.18333133]
[1769849826343,0.1024,2648.9,2647.5,13.18333133]
[1769849826546,0.1024,2648.7,2647.5,13.18333133]
[1769849826737,0.57470094,2648.7,2647.5,13.18333133]
[1769849826928,0.1024,2648.5,2647.5,13.18333133]
[1769849827458,0.69144428,2648.5,2647.5,13.18333133]
[1769849827760,0.1024,2648.3,2647.5,13.18333133]
[1769849828948,1.60973813,2648.3,2647.5,13.18333133]
[1769849829160,0.1024,2648.1,2647.5,11.6743932]
[1769849829359,1.30827051,2648.1,2647.5,10.46852269]
[1769849829659,0.1024,2647.9,2647.5,10.46852269]
[1769849829859,1.0670964,2647.9,2647.5,10.46852269]
[1769849830055,1.0179018,2647.9,2647.5,10.46852269]
[1769849830363,1.0179018,2647.9,2647.5,9.50382629]
[1769849830533,0.77175712,2647.8,2647.5,9.50382629]
[1769849831669,0.77175712,2647.8,2647.4,0.791]
[1769849832031,0.1024,2647.7,2647.4,0.741]
[1769849832327,0.59632456,2647.7,2647.4,0.72933753]
[1769849832629,0.1024,2647.5,2647.3,0.792]
[1769849833056,0.06330578,2647.5,2647.3,0.792]
[1769849834138,0.49392456,2647.6,2647.3,0.792]
[1769849834651,0.49392456,2647.6,2647.3,0.1745943]
[1769849834860,0.49392456,2647.6,2647.4,1.9e-07]
[1769849835036,0.49392456,2647.6,2647.2,0.79200002]
[1769849835458,0.49392456,2647.6,2647.1,0.792]
[1769849836053,0.49392456,2647.6,2647.1,0.4762855]
[1769849836247,0.1024,2647.5,2647.1,0.4762855]
[1769849836564,0.37638027,2647.5,2647.1,0.4762855]
[1769849836934,0.1024,2647.3,2647.1,0.4762855]
[1769849839374,0.31106859,2648.2,2647.1,0.4762855]
[1769849841268,0.31106859,2648.2,2647.2,0.21476862]
[1769849841469,0.1024,2648.1,2647.2,0.21476862]
[1769849841669,0.31106859,2648.2,2647.4,12.76122052]
[1769849842234,0.31106859,2648.2,2647.4,12.97598914]
[1769849842472,0.31106859,2648.2,2647.4,12.76122052]
[1769849843277,0.3782,2649.2,2647.4,12.76122052]
[1769849843572,0.26751004,2649.4,2648.1,12.76122052]
[1769849843783,0.1024,2649.3,2648.3,12.76122052]
[1769849843937,0.36525544,2650.4,2648.5,12.76122052]
[1769849845942,0.1024,2650.3,2648.5,12.76122052]
[1769849846144,0.38165894,2650.3,2648.5,12.76122052]
[1769849846344,0.1024,2650.1,2648.6,0.792]
[1769849846575,0.42036293,2650.1,2648.6,13.55322052]
[1769849846812,0.01149557,2649.8,2648.7,0.74301328]
[1769849847091,0.01149557,2649.3,2647.1,12.76122052]
[1769849847256,0.27773509,2649.5,2647.8,12.76122052]
[1769849847456,30.27773509,2649.5,2647.8,12.76122052]
[1769849847673,30.28051436,2649.4,2647.8,14.03734257]
[1769849847886,0.28051436,2649.4,2647.8,14.03734257]
[1769849848890,0.28051436,2649.4,2647.9,0.792]
[1769849849075,0.28051436,2649.4,2647.9,13.55322052]
[1769849849261,0.1024,2649.3,2647.9,13.55322052]
[1769849849462,0.1024,2649.3,2648.1,12.76122052]
[1769849851367,0.01149557,2649.8,2648.1,12.76122052]
[1769849851571,0.2770067,2649.7,2648.1,12.76122052]
[1769849851958,0.2770067,2649.7,2648.1,12.71122052]
[1769849852163,0.2770067,2649.7,2648.2,13.55322052]
[1769849853161,12.973,2649.6,2648.2,13.55322052]
[1769849853362,0.1024,2649.4,2648.2,13.55322052]
[1769849854674,0.1024,2649.4,2648.2,13.47771464]
[1769849855696,0.1024,2649.2,2648.2,13.47771464]
[1769849855997,0.1024,2649.2,2648.2,0.66649412]
[1769849856499,0.1024,2649.2,2648.2,13.42771464]
[1769849856669,0.1024,2649.4,2648.2,13.42771464]
[1769849858697,0.001,2649.2,2648.3,0.791]
[1769849858872,0.001,2649.2,2648.3,13.71177899]
[1769849859275,0.1024,2649.4,2648.3,13.71177899]
[1769849860500,0.1024,2649.4,2648.3,12.92077899]
[1769849860700,0.1024,2649.4,2648.4,0.791]
[1769849861074,0.1024,2649.2,2648.4,0.791]
[1769849861302,0.1024,2649.0,2647.9,13.92947518]
[1769849861507,0.1024,2648.8,2647.6,0.0011]
[1769849861676,12.9338319,2648.6,2647.6,0.0011]
[1769849861874,0.1024,2648.4,2647.6,0.0011]
[1769849863704,0.1024,2648.5,2647.6,0.0011]
[1769849863906,30.1024,2648.5,2647.6,0.0011]
[1769849864077,0.1024,2648.5,2647.6,0.0011]
[1769849865709,0.1024,2648.4,2647.6,0.0011]
[1769849865926,0.1024,2648.4,2647.6,0.7931]
[1769849866080,0.1024,2648.4,2647.6,14.72257518]
[1769849866280,0.01149557,2649.3,2647.6,14.72257518]
[1769849866512,15.89649557,2649.3,2647.6,16.1949427]
[1769849866787,30.0,2649.2,2647.6,14.72257518]
[1769849867398,12.8314319,2649.1,2647.6,14.72257518]
[1769849867597,12.8314319,2648.9,2647.6,0.7931]
[1769849867924,12.8314319,2648.9,2647.7,0.792]
[1769849868217,42.9338319,2648.8,2647.7,0.792]
[1769849868402,0.1024,2648.6,2647.7,0.792]
[1769849868607,0.1024,2648.4,2647.7,0.792]
[1769849869609,0.1024,2648.7,2647.7,0.52708123]
[1769849869820,0.01149557,2648.4,2647.6,0.0011]
[1769849870003,30.1024,2648.3,2647.6,0.0011]
[1769849870316,0.1024,2648.1,2647.4,0.0011]
[1769849870544,0.1024,2647.9,2647.4,0.0011]
[1769849871708,0.01149557,2648.4,2647.5,3.87]
[1769849871904,0.01149557,2648.4,2647.5,3.60687303]
[1769849872127,0.1024,2648.2,2647.5,3.60687303]
[1769849872410,30.0,2648.3,2647.0,334.97054187]
[1769849872411,0.1024,2647.4,2647.0,334.97054187]
[1769849872612,1.88494407,2647.3,2647.0,334.97054187]
[1769849873599,1.88494407,2647.3,2647.0,332.04013618]
[1769849873809,30.0,2647.2,2647.0,318.04013618]
[1769849874009,17.747,2647.2,2647.0,318.04013618]
[1769849874311,30.0,2647.2,2647.0,318.04013618]
[1769849874710,0.1024,2647.1,2647.0,317.41458038]
[1769849874885,30.1024,2647.1,2647.0,317.41458038]
[1769849875281,30.1024,2647.1,2647.0,315.39658038]
[1769849875613,31.64275418,2647.1,2647.0,303.58433426]
[1769849875796,1.64275418,2647.1,2647.0,207.56199626]
[1769849876112,25.81575418,2647.1,2647.0,176.68936678]
[1769849876315,31.64275418,2647.1,2647.0,173.50778846]
[1769849876522,31.64275418,2647.1,2647.0,172.33122959]
[1769849876825,31.64275418,2647.1,2647.0,171.167024]
[1769849877030,31.64275418,2647.1,2647.0,170.30405483]
[1769849877203,31.64275418,2647.1,2647.0,169.74899416]
[1769849877404,31.64275418,2647.1,2647.0,168.63571499]
[1769849877625,31.64275418,2647.1,2647.0,168.08624552]
[1769849877827,31.64275418,2647.1,2647.0,167.54001465]
[1769849878133,31.64275418,2647.1,2647.0,166.72746081]
[1769849878335,31.64275418,2647.1,2647.0,166.45907146]
[1769849878627,31.64275418,2647.1,2647.0,164.13366319]
[1769849878834,31.64275418,2647.1,2647.0,164.10066319]
[1769849879030,31.64275418,2647.1,2647.0,161.65966319]
[1769849879240,31.64275418,2647.1,2647.0,160.14945267]
[1769849879420,31.64275418,2647.1,2647.0,159.85641804]
[1769849879628,1.64275418,2647.1,2647.0,158.0579905]
[1769849879826,31.64275418,2647.1,2647.0,158.0579905]
[1769849880016,1.64275418,2647.1,2647.0,128.0579905]
[1769849880218,1.64275418,2647.1,2647.0,98.0579905]
[1769849880903,1.64275418,2647.1,2647.0,96.54792314]
[1769849881110,31.64275418,2647.1,2647.0,96.54792314]
[1769849882035,32.16979638,2647.1,2647.0,95.81363679]
[1769849882236,1.64275418,2647.1,2647.0,95.81363679]
[1769849882807,1.64275418,2647.1,2647.0,95.26363679]
[1769849883230,0.01149557,2647.8,2647.0,94.60621074]
[1769849883539,0.01149557,2647.8,2647.1,17.54346807]
[1769849883745,0.01149557,2647.8,2647.1,17.49346807]
[1769849885134,0.01149557,2647.8,2647.2,13.92947518]
[1769849885335,0.29514664,2648.1,2647.3,14.72147518]
[1769849887031,0.29514664,2648.1,2647.4,30.32116716]
[1769849887435,0.1024,2648.0,2647.4,30.32116716]
[1769849888328,0.1024,2648.0,2647.5,3.87]
[1769849888532,0.1024,2648.0,2647.5,3.85672293]
[1769849888729,0.1024,2648.0,2647.5,3.83901857]
[1769849888931,0.1024,2648.0,2647.5,3.82352568]
[1769849889117,0.1024,2648.0,2647.5,3.81688543]
[1769849889313,0.1024,2648.0,2647.6,3.81688543]
[1769849889937,0.1024,2648.0,2647.3,0.792]
[1769849890140,0.1024,2648.0,2647.3,18.1715725]
[1769849891346,0.1024,2647.8,2647.3,0.792]
[1769849891757,0.1024,2647.8,2647.0,1094.60399767]
[1769849892044,0.1024,2647.6,2647.0,1094.60399767]
[1769849892266,0.1024,2647.4,2647.0,1094.60399767]
[1769849892618,0.1024,2647.4,2647.0,1094.58689746]
[1769849892812,0.1024,2647.4,2647.0,1092.96121405]
[1769849893448,0.1024,2647.2,2647.0,1059.53821405]
[1769849893633,0.1024,2647.2,2647.0,1058.10829792]
[1769849893819,0.56452855,2647.2,2647.0,1058.10829792]
[1769849894013,0.56452855,2647.2,2647.0,1057.29953555]
[1769849894350,0.1024,2647.2,2647.1,0.00675383]
[1769849894651,0.1024,2647.4,2647.0,1057.29953555]
[1769849894952,0.1024,2647.2,2647.0,1007.22398403]
[1769849895133,1.00917927,2647.1,2647.0,1004.39667802]
[1769849895451,0.1024,2647.1,2647.0,931.6237291]
[1769849895646,0.1024,2647.1,2647.0,900.8453471]
[1769849895850,0.1024,2647.1,2647.0,889.8377051]
[1769849896037,0.1024,2647.1,2647.0,859.8377051]
[1769849896243,0.1024,2647.1,2647.0,820.04760915]
[1769849896544,0.1024,2647.1,2647.0,766.12025113]
[1769849896750,0.1024,2647.1,2647.0,752.76848293]
[1769849896949,0.1024,2647.1,2647.0,717.74488744]
[1769849896950,14.3422661,2647.1,2647.0,717.74488744]
[1769849897248,13.95292585,2647.1,2647.0,653.49041377]
[1769849897552,13.95292585,2647.1,2647.0,641.40196726]
[1769849897865,13.85052585,2647.4,2647.0,579.06458452]
[1769849898024,0.2335703,2647.7,2647.0,579.06458452]
[1769849898025,0.27650217,2648.0,2647.0,566.15443648]
[1769849898221,10.27650217,2648.0,2647.0,555.96532748]
[1769849898443,0.27650217,2648.0,2647.1,10.92648966]
[1769849898660,0.27650217,2648.0,2647.3,12.94159466]
[1769849898862,1.11915355,2648.8,2647.4,0.792]
[1769849898863,0.31467116,2648.7,2647.4,0.792]
[1769849899027,14.16519701,2648.7,2647.4,18.1715725]
[1769849899232,10.9994707,2648.2,2647.0,537.79375498]
[1769849899551,10.9994707,2648.0,2647.0,537.49645544]
[1769849899861,0.1024,2647.7,2647.0,537.20777989]
[1769849900020,0.1024,2647.5,2647.0,536.6335491]
[1769849900223,0.46075449,2647.5,2647.0,535.77906912]
[1769849900448,0.1024,2647.3,2647.0,532.78695366]
[1769849900626,0.4173271,2647.3,2647.0,532.20351211]
[1769849900828,0.1024,2647.1,2647.0,530.78332852]
[1769849901036,0.38302184,2647.1,2647.0,529.16186796]
[1769849901245,0.38302184,2647.1,2647.0,528.87388423]
[1769849901444,0.38302184,2647.1,2647.0,528.3094195]
[1769849901647,0.38302184,2647.1,2647.0,528.02960817]
[1769849901858,0.38302184,2647.1,2647.0,527.46312108]
[1769849902034,0.38302184,2647.1,2647.0,526.90340565]
[1769849902362,0.28062184,2647.1,2647.0,526.01042341]
[1769849902564,0.28062184,2647.1,2647.0,521.18530132]
[1769849902956,0.28062184,2647.1,2647.0,518.26227288]
[1769849903268,12.31932646,2647.1,2647.0,501.0962105]
[1769849903427,12.31932646,2647.1,2647.0,496.86079657]
[1769849903625,12.31932646,2647.1,2647.0,494.72850585]
[1769849903626,0.47027862,2647.1,2647.0,494.72850585]
[1769849903859,11.35975461,2647.1,2647.0,493.3892957]
[1769849904026,12.1776268,2647.1,2647.0,492.75889991]
[1769849904351,11.86713369,2647.1,2647.0,488.47523902]
[1769849904553,0.9776577,2647.1,2647.0,484.98688082]
[1769849904853,0.26902062,2647.1,2647.0,481.18438827]
[1769849905057,0.18580257,2647.1,2647.0,480.04820109]
[1769849905565,0.18580257,2647.1,2647.0,477.66572728]
[1769849906248,0.05284225,2647.1,2647.0,477.66572728]
[1769849906443,0.28236286,2647.2,2647.0,489.96053884]
[1769849906645,0.001,2647.8,2647.0,477.66572728]
[1769849909963,0.1024,2647.6,2647.1,11.42322786]
[1769849910136,0.66452945,2647.6,2647.1,11.42322786]
[1769849910473,15.54239599,2647.4,2647.0,475.3505331]
[1769849910636,0.1024,2647.1,2647.0,466.0221255]
[1769849911035,0.1024,2647.1,2647.0,464.88611042]
[1769849911536,0.1024,2647.1,2647.0,463.75009534]
[1769849912084,0.1024,2647.1,2647.0,462.61408026]
[1769849912384,0.1024,2647.1,2647.0,460.76548231]
[1769849912694,0.1024,2647.1,2647.0,459.62946723]
[1769849912990,4.17232,2647.2,2647.0,459.06046883]
[1769849913188,4.17232,2647.2,2647.0,455.69190645]
[1769849913394,4.17232,2647.2,2647.0,455.09589023]
[1769849913674,4.17232,2647.2,2647.0,454.23473864]
[1769849913874,4.17232,2647.2,2647.0,453.65971998]
[1769849914037,4.17232,2647.2,2647.0,453.09494723]
[1769849914233,0.792,2647.3,2647.0,452.24528203]
[1769849914457,0.792,2647.3,2647.0,463.38333265]
[1769849914658,0.792,2647.3,2647.0,463.3077797]
[1769849914858,0.1024,2647.2,2647.0,463.3077797]
[1769849915256,3.988,2647.4,2647.1,10.63982786]
[1769849915494,0.18432,2647.5,2647.1,10.35493109]
[1769849916492,3.988,2647.6,2647.1,10.35493109]
[1769849916679,3.988,2647.6,2647.1,10.35296617]
[1769849917263,3.988,2647.6,2647.1,10.34903627]
[1769849917264,0.1024,2647.5,2647.1,10.34903627]
[1769849917463,0.1024,2647.5,2647.1,10.34117623]
[1769849919591,0.1024,2647.5,2647.1,10.33694093]
[1769849919897,0.1024,2647.5,2647.1,10.24743109]
[1769849920679,0.1024,2647.5,2647.1,9.96854719]
[1769849921864,0.1024,2647.6,2647.1,9.96854719]
[1769849922070,0.1024,2647.6,2647.1,9.86486719]
[1769849922271,0.1024,2647.6,2647.1,9.505219]
[1769849924413,0.3782,2648.0,2647.3,13.00343362]
[1769849924574,0.3782,2648.0,2647.3,13.79543362]
[1769849924899,0.3782,2648.0,2647.4,9.023139]
[1769849925091,0.3782,2648.0,2647.5,13.00343362]
[1769849925503,0.3782,2648.0,2647.6,9.023139]
[1769849926376,0.1024,2647.9,2647.6,9.023139]
[1769849926704,0.1024,2647.9,2647.6,8.28566864]
[1769849928111,0.1024,2647.9,2647.6,8.17699669]
[1769849928276,0.3782,2648.0,2647.6,8.17699669]
[1769849928779,0.3782,2648.0,2647.6,7.5912367]
[1769849929398,0.001,2647.8,2647.6,7.5912367]
[1769849930905,0.001,2647.8,2647.6,7.4875567]
[1769849931494,0.1024,2648.0,2647.6,7.4875567]
[1769849932001,0.1024,2648.0,2647.4,7.4875567]
[1769849932703,0.1024,2648.0,2647.1,3.81688543]
[1769849933023,4.4686,2648.0,2647.2,7.4875567]
[1769849933232,4.4686,2648.0,2647.0,459.26842854]
[1769849934137,10.99184199,2647.7,2647.0,451.78955184]
[1769849934446,0.1024,2647.3,2647.0,439.13918849]
[1769849934586,0.1024,2647.3,2647.0,434.93530281]
[1769849934782,0.1024,2647.3,2647.0,434.85974986]
[1769849934987,0.1024,2647.3,2647.0,434.04373661]
[1769849935182,0.1024,2647.3,2647.0,432.41705023]
[1769849935418,0.1024,2647.4,2647.0,430.96661909]
[1769849935810,0.1024,2647.4,2647.0,416.200238]
[1769849935811,0.1024,2647.2,2647.0,416.200238]
[1769849936126,0.1024,2647.2,2647.0,413.86452888]
[1769849936640,0.1024,2647.2,2647.0,412.14421617]
[1769849936936,0.1024,2647.2,2647.0,410.02580902]
[1769849937215,0.1024,2647.2,2647.0,409.08462302]
[1769849937410,0.18432,2647.4,2647.0,407.58815634]
[1769849937595,3.988,2647.5,2647.0,406.71849524]
[1769849937794,0.18432,2647.4,2647.0,374.98099226]
[1769849938012,10.97632,2647.4,2647.0,344.37405526]
[1769849938223,11.35452,2647.4,2647.0,313.23081644]
[1769849938429,11.35452,2647.4,2647.0,283.20255344]
[1769849938724,11.35452,2647.4,2647.0,251.76891053]
[1769849939022,11.35452,2647.4,2647.0,204.08784529]
[1769849939227,11.35452,2647.4,2647.0,173.75654067]
[1769849939435,11.09424199,2647.3,2647.0,142.37606397]
[1769849939599,11.09424199,2647.3,2647.0,112.37606397]
[1769849939799,11.09424199,2647.3,2647.0,100.24636415]
[1769849939996,11.09424199,2647.3,2647.0,70.24636415]
[1769849940201,0.1024,2647.3,2647.1,5.99308975]
[1769849940423,0.1024,2647.3,2647.1,3.06358874]
[1769849940629,0.1024,2647.3,2647.0,59.09924016]
[1769849940824,0.1024,2647.3,2647.0,53.18065816]
[1769849941032,0.1024,2647.3,2647.0,47.96695316]
[1769849941220,0.7904,2647.4,2647.0,42.26432616]
[1769849941529,0.3782,2647.8,2647.2,0.0011]
[1769849941828,11.44810952,2648.4,2647.2,13.00343362]
[1769849941829,0.001,2647.6,2647.2,13.00343362]
[1769849943355,1.09535508,2648.1,2647.2,13.00343362]
[1769849943356,0.1024,2648.0,2647.2,13.00343362]
[1769849944348,11.068199,2647.9,2647.2,13.00343362]
[1769849944649,0.30335508,2648.1,2647.1,13.00343362]
[1769849944848,0.30335508,2648.1,2647.3,13.00343362]
[1769849945056,8.014752,2648.0,2647.3,13.00343362]
[1769849946246,6.139981,2647.9,2647.3,12.18900962]
[1769849946431,7.988402,2648.0,2647.3,12.18900962]
[1769849946630,0.1024,2647.9,2647.3,12.18900962]
[1769849947027,0.1024,2647.7,2647.3,12.18900962]
[1769849947353,0.1024,2648.0,2647.3,12.18900962]
[1769849947553,0.30335508,2648.1,2647.3,12.18900962]
[1769849947854,0.30335508,2648.1,2647.2,13.68118874]
[1769849948055,11.202936,2648.0,2647.2,17.49807417]
[1769849948222,6.169732,2647.9,2647.2,17.49807417]
[1769849948422,10.718175,2648.0,2647.2,17.49807417]
[1769849948659,11.691575,2648.0,2647.2,17.49807417]
[1769849948847,11.449172,2648.0,2647.2,17.49807417]
[1769849949032,12.8050595,2649.0,2647.4,5.7471053]
[1769849949238,30.30514588,2648.9,2647.5,5.44375022]
[1769849949558,30.30514588,2648.9,2647.6,5.44375022]
[1769849949559,0.1024,2648.7,2647.6,5.44375022]
[1769849949753,0.1024,2648.5,2647.6,5.44375022]
[1769849950060,33.641595,2648.5,2647.6,5.44375022]
[1769849950356,0.1024,2648.3,2647.6,5.44375022]
[1769849950556,0.1024,2648.1,2647.6,9.26063565]
[1769849950760,0.1024,2647.9,2647.6,9.26063565]
[1769849951840,12.9074595,2648.7,2647.6,3.77143943]
[1769849952039,12.9558595,2648.7,2647.6,3.77143943]
[1769849952247,0.1024,2648.5,2647.6,3.77143943]
[1769849952427,0.1024,2648.3,2647.6,3.77143943]
[1769849952627,0.1024,2648.1,2647.6,3.77143943]
[1769849952827,0.1024,2647.9,2647.6,3.77143943]
[1769849953036,10.05168796,2647.9,2647.6,9.21518965]
[1769849953240,14.30514588,2648.9,2647.7,3.77143943]
[1769849953444,14.30514588,2648.9,2647.2,3.77358491]
[1769849953445,14.0,2648.7,2647.8,3.77143943]
[1769849953660,27.756422,2648.6,2647.8,3.77143943]
[1769849953873,0.001,2648.5,2647.8,3.77143943]
[1769849954079,16.756952,2648.4,2647.8,3.77143943]
[1769849954282,16.719081,2648.4,2647.8,3.77143943]
[1769849954560,16.828198,2648.4,2647.6,3.77143943]
[1769849954758,12.71674,2648.3,2647.6,3.69590931]
[1769849954979,8.554771,2648.3,2647.7,3.69590931]
[1769849955279,0.1024,2648.3,2647.7,3.69590931]
[1769849955579,0.1024,2648.1,2647.7,3.69590931]
[1769849955930,0.001,2648.5,2647.8,3.69590931]
[1769849956149,0.1024,2648.3,2647.8,3.69590931]
[1769849956370,0.1024,2648.1,2647.8,3.69590931]
[1769849956681,10.1024,2648.1,2647.8,3.69590931]
[1769849956957,0.1024,2648.1,2647.8,3.69590931]
[1769849957164,0.1024,2647.9,2647.8,3.69590931]
[1769849957363,3.041337,2647.9,2647.8,3.69590931]
[1769849958748,0.001,2648.5,2647.8,3.69590931]
[1769849958953,12.719235,2648.4,2647.8,3.69590931]
[1769849959158,7.073686,2648.3,2647.8,3.69590931]
[1769849959357,7.073686,2648.3,2647.9,3.69590931]
[1769849959557,6.138233,2648.4,2647.9,3.69590931]
[1769849959755,6.077641,2648.4,2647.9,3.69590931]
[1769849960071,3.805663,2648.4,2647.9,3.69590931]
[1769849960255,4.373645,2648.4,2647.9,3.69590931]
[1769849960970,0.1024,2648.3,2647.9,3.69590931]
[1769849961473,2.041201,2648.2,2647.9,3.24525331]
[1769849961660,0.1024,2648.1,2647.9,1.14345031]
[1769849961866,9.479361,2648.0,2647.9,1.14345031]
[1769849962062,9.486967,2648.0,2647.9,1.14345031]
[1769849962280,7.972079,2648.0,2647.9,1.14345031]
[1769849962645,0.1024,2648.0,2647.9,1.14345031]
[1769849963141,0.1024,2648.0,2647.9,0.93075128]
[1769849963448,14.1024,2647.9,2647.0,32.53441718]
[1769849963644,14.8944,2647.9,2647.0,27.73459318]
[1769849963854,14.0,2647.6,2647.0,27.73459318]
[1769849964059,0.1024,2647.4,2647.0,24.02923618]
[1769849964267,10.1024,2647.4,2647.0,18.38789718]
[1769849964575,14.1024,2647.3,2647.0,15.92524418]
[1769849964783,14.1024,2647.3,2647.0,10.23850118]
[1769849964946,0.1024,2647.1,2647.0,1.93750218]
[1769849967077,10.1024,2647.5,2647.0,1.93750218]
[1769849967251,0.1024,2647.3,2647.0,1.93750218]
[1769849967450,10.1024,2647.3,2647.0,1.93750218]
[1769849967976,24.1024,2647.3,2647.0,1.88701534]
[1769849968175,24.1024,2647.3,2645.7,1.88591534]
[1769849968176,0.1024,2646.9,2645.7,1.88591534]
[1769849968351,10.1024,2646.9,2645.7,1.88591534]
[1769849968553,0.1024,2646.7,2646.1,3.87]
[1769849968763,0.1024,2646.7,2645.7,1.88591534]
[1769849969352,0.1024,2646.7,2646.4,0.93185128]
[1769849971094,0.1024,2646.7,2645.7,1.88591534]
[1769849971392,1.3951021,2646.8,2645.7,1.88591534]
[1769849971393,0.1024,2646.5,2645.7,1.88591534]
[1769849971592,0.1024,2646.3,2645.7,1.88591534]
[1769849972395,0.1024,2646.3,2645.5,0.0011]
[1769849972693,0.1024,2646.1,2645.5,0.0011]
[1769849972891,0.7570259,2646.1,2645.5,0.0011]
[1769849973767,13.05649233,2647.1,2645.7,1.88701534]
[1769849973967,13.43500528,2647.4,2645.9,1.12998944]
[1769849974179,8.095695,2647.3,2645.9,1.12998944]
[1769849974380,18.095695,2647.3,2645.9,1.12998944]
[1769849974583,14.944049,2647.3,2645.9,1.12998944]
[1769849974799,13.43500528,2648.0,2646.1,1.0544265]
[1769849974983,4.249604,2647.9,2646.1,1.0544265]
[1769849975186,10.001,2648.2,2646.5,1.0544265]
[1769849975495,10.001,2648.2,2646.0,1.7368166]
[1769849975496,4.347541,2648.2,2646.3,0.2335703]
[1769849975796,0.1024,2648.3,2646.1,0.78519122]
[1769849975999,0.1024,2648.1,2646.1,0.78519122]
[1769849976171,0.1024,2647.9,2646.1,0.78519122]
[1769849976365,0.1024,2647.7,2646.3,0.2335703]
[1769849976561,10.1024,2647.7,2646.3,0.2335703]
[1769849976895,0.1024,2647.7,2646.2,0.792]
[1769849977092,0.1024,2647.5,2646.2,0.792]
[1769849977280,0.1024,2647.3,2645.5,0.0011]
[1769849977463,0.1024,2647.1,2645.6,0.792]
[1769849977668,0.1024,2646.9,2645.6,0.792]
[1769849978393,0.1024,2646.7,2645.6,0.792]
[1769849978577,14.1024,2647.2,2645.6,0.792]
[1769849978776,0.1024,2647.0,2645.6,0.792]
[1769849978975,9.010115,2646.9,2645.6,0.792]
[1769849979196,11.385715,2646.9,2645.5,0.0011]
[1769849979401,14.1024,2646.8,2645.1,0.792]
[1769849979574,0.1024,2646.4,2645.1,1.75108604]
[1769849979771,11.89203,2646.3,2645.8,0.0011]
[1769849979971,10.633842,2646.3,2645.8,0.0011]
[1769849980302,0.1024,2646.1,2645.8,0.0011]
[1769849981706,14.1024,2646.3,2645.8,0.0011]
[1769849986614,0.1024,2646.5,2645.8,0.0011]
[1769849986972,0.05359181,2646.5,2645.8,0.0011]
[1769849987202,0.001,2647.1,2645.8,0.0011]
[1769849987571,9.274159,2647.0,2645.8,0.0011]
[1769849988705,6.682775,2647.0,2645.8,0.0011]
[1769849988927,14.1024,2646.7,2645.8,0.0011]
[1769849994708,14.1024,2646.7,2645.2,0.71862136]
[1769849994885,14.1024,2646.5,2645.2,4.49220627]
[1769849995085,0.1024,2646.3,2645.2,4.49220627]
[1769849995413,21.438965,2646.2,2645.2,4.49220627]
[1769849995813,0.1024,2646.0,2645.2,4.49220627]
[1769849996005,13.533939,2645.9,2645.2,4.49220627]
[1769849996307,13.533939,2645.9,2645.2,0.71862136]
[1769849996913,13.533939,2645.9,2644.5,0.2346703]
[1769849997213,13.533939,2645.9,2645.1,0.792]
[1769849998012,27.533939,2645.9,2645.1,0.792]
[1769849998210,0.1024,2645.7,2644.5,0.0011]
[1769849998507,7.967112,2645.6,2645.1,0.792]
[1769849999210,4.843911,2645.6,2645.1,0.792]
[1769849999510,3.797813,2645.6,2645.1,0.792]
[1769849999710,0.1024,2645.9,2645.1,0.792]
[1769849999911,0.1024,2645.7,2645.1,0.792]
[1769850000212,3.71673046,2645.6,2645.1,0.792]
[1769850000409,14.001,2647.1,2645.1,4.56558491]
[1769850000613,0.1024,2646.8,2645.1,4.56558491]
[1769850000830,0.1024,2646.6,2645.1,5.51072487]
[1769850000985,0.1024,2646.4,2645.2,3.77358491]
[1769850001313,14.0,2647.8,2645.3,0.2335703]
[1769850001511,6.156124,2647.0,2645.3,0.2335703]
[1769850001714,0.1024,2646.9,2645.3,0.2335703]
[1769850002021,8.694688,2646.9,2645.3,1.35173757]
[1769850002208,14.1024,2646.7,2645.4,0.792]
[1769850002393,0.34507645,2647.5,2645.0,1119.81515379]
[1769850002394,14.1024,2646.5,2645.0,1119.81515379]
[1769850002591,0.1024,2646.2,2645.1,0.792]
[1769850002932,0.1024,2646.1,2645.1,0.792]
[1769850003135,4.437637,2646.0,2645.1,2.05573054]
[1769850003313,0.1024,2646.5,2645.1,2.05573054]
[1769850003488,0.1024,2646.3,2645.1,2.05573054]
[1769850003684,0.1024,2646.1,2645.1,0.792]
[1769850003887,33.981009,2646.1,2645.1,0.792]
[1769850004089,9.451625,2646.0,2645.1,0.792]
[1769850004394,9.451625,2646.0,2645.3,0.0011]
[1769850005227,8.163101,2646.0,2645.3,0.0011]
[1769850005514,10.1024,2646.3,2645.4,0.792]
[1769850005717,0.1024,2646.1,2645.4,0.792]
[1769850005922,0.001,2646.5,2645.5,0.2335703]
[1769850006134,0.001,2646.5,2645.4,0.792]
[1769850006297,0.1024,2646.3,2645.4,0.792]
[1769850006704,0.001,2646.5,2645.4,0.792]
[1769850006931,0.001,2646.5,2645.4,1.73702357]
[1769850008535,0.001,2646.5,2645.4,0.792]
[1769850009790,0.001,2646.5,2645.4,1.73702608]
[1769850010742,0.001,2646.5,2645.5,0.55183898]
[1769850012240,0.001,2646.5,2645.6,0.2335703]
[1769850014115,0.001,2646.5,2645.6,0.9449404]
[1769850014311,0.001,2646.5,2645.4,0.792]
[1769850014530,0.001,2646.5,2645.3,3.7813627]
[1769850014531,3.448053,2646.4,2645.3,0.0011]
[1769850014714,3.448053,2646.4,2645.4,0.71641136]
[1769850015319,0.1024,2646.4,2645.4,0.71641136]
[1769850015638,17.480424,2646.3,2645.4,0.71641136]
[1769850016030,16.476203,2646.3,2645.4,0.71641136]
[1769850016347,13.145449,2646.3,2645.4,0.71641136]
[1769850016526,14.0,2646.2,2645.5,0.0011]
[1769850016836,0.001,2646.3,2645.5,0.0011]
[1769850017143,2.357045,2646.2,2645.5,0.0011]
[1769850017345,0.001,2646.3,2645.5,0.0011]
[1769850019140,0.001,2646.3,2645.6,0.792]
[1769850019948,0.001,2646.3,2645.7,0.2335703]
[1769850020310,10.1018,2647.1,2645.7,0.2335703]
[1769850020514,14.0,2646.9,2645.6,0.792]
[1769850020732,14.0,2646.7,2645.7,0.792]
[1769850021046,2.39073,2646.6,2645.7,0.792]
[1769850021245,12.39073,2646.6,2645.7,0.792]
[1769850021539,14.0,2647.0,2645.7,0.792]
[1769850021711,11.331731,2646.9,2645.7,0.792]